bitfinex/quotes_BTCUSD_20240715
["timestamp","ask_amount","ask_price","bid_price","bid_amount"]
[1721024527396,0.35902797,63073.0,63072.0,0.3451]
[1721024527596,0.3434132,63073.0,63072.0,0.3451]
[1721024527929,0.3434132,63073.0,63072.0,0.3311]
[1721024528856,0.3434132,63073.0,63072.0,0.3451]
[1721024531048,0.14219495,63073.0,63072.0,0.773182]
[1721024531392,0.14219495,63073.0,63072.0,1.05857]
[1721024531393,0.00813917,63073.0,63072.0,1.05857]
[1721024531615,0.00813917,63073.0,63072.0,1.1348609]
[1721024531829,0.00813917,63073.0,63072.0,1.13467]
[1721024532347,0.00813917,63073.0,63072.0,1.1348609]
[1721024532553,0.00813917,63073.0,63072.0,1.4432489]
[1721024533253,0.00813917,63073.0,63072.0,1.443058]
[1721024533459,0.00813917,63073.0,63072.0,1.4292489]
[1721024533680,0.00813917,63073.0,63072.0,1.4432489]
[1721024534275,0.00813917,63073.0,63072.0,1.4292489]
[1721024534480,0.00813917,63073.0,63072.0,1.4432489]
[1721024534771,0.00813917,63073.0,63072.0,1.4292489]
[1721024535237,0.00813917,63073.0,63072.0,1.4301619]
[1721024535654,0.00813917,63073.0,63072.0,1.4441619]
[1721024535942,0.00813917,63073.0,63072.0,1.4301619]
[1721024536181,0.00813917,63073.0,63072.0,1.4441619]
[1721024536378,0.00813917,63073.0,63072.0,1.4581619]
[1721024536795,0.00813917,63073.0,63072.0,1.4441619]
[1721024537001,0.00813917,63073.0,63072.0,1.6581619]
[1721024537205,0.00813917,63073.0,63072.0,2.0435499]
[1721024538044,0.00813917,63073.0,63072.0,2.0155499]
[1721024538447,0.00813917,63073.0,63072.0,1.8295499]
[1721024538675,0.00813917,63073.0,63072.0,2.1301619]
[1721024539243,0.00813917,63073.0,63072.0,2.1441619]
[1721024539592,0.00813917,63073.0,63072.0,2.60627981]
[1721024539769,0.00813917,63073.0,63072.0,2.65587981]
[1721024539970,0.00813917,63073.0,63072.0,2.66987981]
[1721024540179,0.00813917,63073.0,63072.0,2.95526781]
[1721024540562,0.00813917,63073.0,63072.0,2.94126781]
[1721024540934,0.00813917,63073.0,63072.0,2.95526781]
[1721024542543,0.00813917,63073.0,63072.0,2.75526781]
[1721024543558,0.00813917,63073.0,63072.0,2.95526781]
[1721024544997,0.00813917,63073.0,63072.0,2.5077619]
[1721024545226,0.00813917,63073.0,63072.0,2.63945809]
[1721024545607,0.00813917,63073.0,63072.0,2.5077619]
[1721024545827,0.00813917,63073.0,63072.0,2.63945205]
[1721024546065,0.00813917,63073.0,63072.0,2.3077619]
[1721024547758,0.00813917,63073.0,63072.0,1.6077619]
[1721024547897,0.00813917,63073.0,63072.0,2.3077619]
[1721024549965,0.00813917,63073.0,63072.0,1.6077619]
[1721024550284,0.00813917,63073.0,63072.0,2.7931499]
[1721024550690,0.00813917,63073.0,63072.0,2.95526781]
[1721024550869,0.00813917,63073.0,63072.0,3.08695753]
[1721024551271,0.00813917,63073.0,63072.0,2.95526781]
[1721024555304,0.00813917,63073.0,63072.0,3.18788895]
[1721024555504,0.00813917,63073.0,63072.0,3.21708913]
[1721024555688,0.00813917,63073.0,63072.0,3.26425697]
[1721024556105,0.57128565,63080.0,63079.0,2.79979312]
[1721024556397,0.57128565,63080.0,63079.0,4.28221882]
[1721024556532,0.57128565,63080.0,63079.0,4.13519143]
[1721024556734,0.57128565,63080.0,63079.0,3.99684929]
[1721024556945,0.57128565,63080.0,63079.0,3.84983543]
[1721024557150,0.57128565,63080.0,63079.0,3.14152359]
[1721024557349,0.57128565,63080.0,63079.0,3.79438387]
[1721024557918,0.57128565,63080.0,63079.0,3.09438387]
[1721024558118,0.57128565,63080.0,63079.0,3.80838387]
[1721024558593,0.57128565,63080.0,63079.0,3.82232498]
[1721024558860,0.57128565,63080.0,63079.0,3.80832498]
[1721024559185,0.57128565,63080.0,63079.0,3.79432498]
[1721024559593,0.57128565,63080.0,63079.0,3.8223287]
[1721024560604,0.57128565,63080.0,63079.0,3.1223287]
[1721024560927,0.57128565,63080.0,63079.0,3.8223287]
[1721024561282,0.57128565,63080.0,63079.0,1.87757751]
[1721024561488,0.57128565,63080.0,63079.0,2.04374711]
[1721024562368,0.57128565,63080.0,63079.0,1.31574711]
[1721024562572,0.57128565,63080.0,63079.0,2.02974711]
[1721024563315,0.57128565,63080.0,63079.0,2.04374711]
[1721024563939,0.57128565,63080.0,63079.0,2.02974711]
[1721024564268,0.57128565,63080.0,63079.0,2.04374711]
[1721024564790,0.57128565,63080.0,63079.0,1.34374711]
[1721024564994,0.57128565,63080.0,63079.0,2.04374711]
[1721024566588,0.57128565,63080.0,63079.0,2.04393801]
[1721024567113,0.57128565,63080.0,63079.0,2.04374711]
[1721024567676,0.57128565,63080.0,63079.0,0.48767911]
[1721024567677,0.6909039,63080.0,63079.0,0.48767911]
[1721024567899,0.8325039,63080.0,63079.0,0.48767911]
[1721024568261,1.21036632,63080.0,63079.0,0.34506]
[1721024568601,1.15036632,63080.0,63079.0,0.33106]
[1721024568802,0.11961825,63073.0,63072.0,0.143605]
[1721024569025,0.11961825,63073.0,63072.0,0.000913]
[1721024569026,0.41774307,63073.0,63072.0,0.000913]
[1721024569251,0.35774307,63073.0,63072.0,0.000913]
[1721024569512,0.1577504,63073.0,63072.0,0.746095]
[1721024569723,0.14125578,63073.0,63072.0,0.746095]
[1721024570037,0.26087403,63073.0,63072.0,0.746095]
[1721024570243,0.14125578,63073.0,63072.0,0.746095]
[1721024570449,0.26087403,63073.0,63072.0,0.760095]
[1721024570868,0.26087403,63073.0,63072.0,0.474707]
[1721024571647,0.26087403,63073.0,63072.0,0.460707]
[1721024572114,0.26087403,63073.0,63072.0,0.318013]
[1721024572289,0.26087403,63073.0,63072.0,0.332013]
[1721024572290,0.26187403,63073.0,63072.0,0.332013]
[1721024572496,0.32087403,63073.0,63072.0,0.318013]
[1721024572696,0.55307403,63073.0,63072.0,0.332013]
[1721024572966,0.55307403,63073.0,63072.0,0.346013]
[1721024572967,0.67080732,63073.0,63072.0,0.346013]
[1721024573121,1.31884201,63073.0,63072.0,0.346013]
[1721024573342,0.67040732,63073.0,63072.0,0.332013]
[1721024573744,0.66930732,63073.0,63072.0,0.332013]
[1721024573897,0.66890732,63073.0,63072.0,0.332013]
[1721024574138,0.66890732,63073.0,63072.0,0.318013]
[1721024574546,0.66870732,63073.0,63072.0,0.325013]
[1721024575109,0.81239832,63073.0,63072.0,0.329013]
[1721024575434,0.81239832,63073.0,63072.0,0.325013]
[1721024575635,0.81239832,63073.0,63072.0,0.328013]
[1721024575636,0.8126367,63073.0,63072.0,0.328013]
[1721024575831,0.8126367,63073.0,63072.0,0.321013]
[1721024576101,0.8116367,63073.0,63072.0,0.323013]
[1721024576395,0.8116367,63073.0,63072.0,0.326013]
[1721024576594,0.8116367,63073.0,63072.0,0.321013]
[1721024576955,0.8116367,63073.0,63072.0,0.326013]
[1721024578894,0.79436503,63073.0,63072.0,0.326013]
[1721024579096,0.81153935,63073.0,63072.0,0.326013]
[1721024579306,0.66884835,63073.0,63072.0,0.326013]
[1721024579478,0.66884835,63073.0,63072.0,0.321013]
[1721024579479,0.65167403,63073.0,63072.0,0.321013]
[1721024579679,0.66889364,63073.0,63072.0,0.318013]
[1721024579879,0.66989364,63073.0,63072.0,0.318013]
[1721024580081,0.66889364,63073.0,63072.0,0.318013]
[1721024581094,0.66889364,63073.0,63072.0,0.323013]
[1721024581566,0.66896416,63073.0,63072.0,0.323013]
[1721024581817,0.66896416,63073.0,63072.0,0.326013]
[1721024581818,0.66877336,63073.0,63072.0,0.326013]
[1721024582063,0.66877336,63073.0,63072.0,0.323013]
[1721024582286,0.66977336,63073.0,63072.0,0.326013]
[1721024582472,0.66977336,63073.0,63072.0,0.335013]
[1721024582670,0.66977336,63073.0,63072.0,0.327013]
[1721024583081,0.66977336,63073.0,63072.0,0.318013]
[1721024583282,0.66877336,63073.0,63072.0,0.324013]
[1721024584243,0.65148323,63073.0,63072.0,0.324013]
[1721024584881,0.65148323,63073.0,63072.0,0.330013]
[1721024585264,0.64387403,63073.0,63072.0,0.324013]
[1721024585440,0.64387403,63073.0,63072.0,0.331013]
[1721024585654,0.64487403,63073.0,63072.0,0.331013]
[1721024585856,0.64487403,63073.0,63072.0,0.325013]
[1721024586083,0.58487403,63073.0,63072.0,0.325013]
[1721024586286,0.58487403,63073.0,63072.0,0.333013]
[1721024586287,0.52267403,63073.0,63072.0,0.333013]
[1721024587233,0.78536503,63073.0,63072.0,0.333013]
[1721024587439,1.07074803,63073.0,63072.0,0.333013]
[1721024587960,0.78536503,63073.0,63072.0,0.333013]
[1721024589146,0.80142032,63073.0,63072.0,0.333013]
[1721024589318,0.80141939,63073.0,63072.0,0.333013]
[1721024589740,1.57978539,63073.0,63072.0,0.333013]
[1721024589943,1.37978539,63073.0,63072.0,0.333013]
[1721024590275,1.09440239,63073.0,63072.0,0.333013]
[1721024590656,1.29440239,63073.0,63072.0,0.333013]
[1721024590859,1.09440239,63073.0,63072.0,0.333013]
[1721024591220,1.09464248,63073.0,63072.0,0.333013]
[1721024591776,1.09464816,63073.0,63072.0,0.333013]
[1721024594278,1.09478935,63073.0,63072.0,0.333013]
[1721024594654,0.59911535,63073.0,63072.0,0.333013]
[1721024594856,0.65911535,63073.0,63072.0,0.333013]
[1721024595273,0.80180635,63073.0,63072.0,0.333013]
[1721024595725,1.08718935,63073.0,63072.0,0.333013]
[1721024596174,0.80180635,63073.0,63072.0,0.333013]
[1721024597349,1.37257235,63073.0,63072.0,0.333013]
[1721024597572,1.37301862,63073.0,63072.0,0.333013]
[1721024597793,1.37301862,63073.0,63055.0,0.48837783]
[1721024597794,0.18947403,63056.0,63055.0,0.48837783]
[1721024598031,0.18947403,63056.0,63055.0,0.4863143]
[1721024598032,0.49857111,63056.0,63055.0,0.4863143]
[1721024598234,0.18947403,63053.0,63052.0,0.0824]
[1721024598474,0.28237403,63053.0,63052.0,0.0824]
[1721024598886,0.28237403,63053.0,63052.0,0.145974]
[1721024599860,0.28237403,63053.0,63052.0,0.159974]
[1721024600086,0.28237403,63053.0,63052.0,0.173974]
[1721024600280,0.42177403,63053.0,63052.0,0.173974]
[1721024603818,0.18947403,63053.0,63052.0,0.173974]
[1721024604019,0.06985578,63053.0,63052.0,0.87977767]
[1721024604175,0.2323,63059.0,63057.0,0.0792]
[1721024604176,0.06985578,63059.0,63057.0,0.0792]
[1721024604387,0.06985578,63059.0,63058.0,0.30062591]
[1721024604617,0.18947403,63059.0,63058.0,0.15790091]
[1721024604821,0.18947403,63059.0,63058.0,0.15583738]
[1721024605412,0.19147403,63059.0,63058.0,0.15583738]
[1721024605688,0.19047403,63059.0,63058.0,0.15583738]
[1721024606197,0.19047403,63059.0,63058.0,0.16983738]
[1721024606428,0.19147403,63059.0,63058.0,0.18590091]
[1721024606547,0.07185578,63059.0,63058.0,0.32862591]
[1721024606747,0.07185578,63059.0,63058.0,0.32656238]
[1721024607188,0.07185578,63059.0,63058.0,0.18383738]
[1721024607406,0.19147403,63059.0,63058.0,0.18383738]
[1721024607604,0.19147403,63059.0,63058.0,0.18590091]
[1721024610321,0.07185578,63059.0,63058.0,0.32862591]
[1721024610523,0.07185578,63059.0,63058.0,0.32656238]
[1721024611025,0.002,63059.0,63058.0,0.89746438]
[1721024612272,0.002,63059.0,63058.0,0.89765528]
[1721024612504,0.002,63059.0,63058.0,1.6581199]
[1721024612700,0.002,63059.0,63058.0,1.1726689]
[1721024613712,0.001,63059.0,63058.0,1.1586689]
[1721024613886,0.06985578,63066.0,63065.0,1.552047]
[1721024615222,0.06985578,63066.0,63065.0,1.566047]
[1721024615919,0.06985578,63066.0,63065.0,1.580047]
[1721024616538,0.06985578,63070.0,63069.0,0.428101]
[1721024616740,0.06985578,63070.0,63069.0,0.368101]
[1721024616943,0.06985578,63071.0,63070.0,0.142698]
[1721024617291,0.06985578,63071.0,63070.0,0.428095]
[1721024618588,0.18947403,63070.0,63069.0,0.0827]
[1721024619153,0.18947403,63070.0,63065.0,0.762]
[1721024619154,0.11961825,63067.0,63066.0,0.00206353]
[1721024619521,0.11961825,63064.0,63063.0,0.0804]
[1721024620897,0.11961825,63064.0,63063.0,0.223113]
[1721024622008,0.11961825,63064.0,63063.0,0.237113]
[1721024622411,0.18947403,63064.0,63063.0,0.237113]
[1721024622993,0.18947403,63064.0,63063.0,0.251113]
[1721024623378,0.24947403,63064.0,63063.0,0.028]
[1721024623576,0.34053854,63064.0,63063.0,0.028]
[1721024624324,0.48325054,63064.0,63063.0,0.014]
[1721024624675,0.48325054,63064.0,63063.0,0.028]
[1721024625076,0.48325054,63064.0,63063.0,0.014]
[1721024625299,0.34053854,63064.0,63063.0,0.014]
[1721024625501,0.34053854,63064.0,63063.0,0.028]
[1721024626246,0.48325054,63064.0,63063.0,0.028]
[1721024626846,1.13473403,63064.0,63063.0,0.028]
[1721024627090,2.09799607,63064.0,63063.0,0.028]
[1721024627256,2.09799607,63064.0,63052.0,0.064487]
[1721024627257,0.46261103,63053.0,63052.0,0.000913]
[1721024627493,1.28102719,63053.0,63052.0,0.000913]
[1721024627694,1.27715964,63053.0,63052.0,0.000913]
[1721024627823,0.5480471,63049.0,63048.0,0.064497]
[1721024628024,0.24947403,63037.0,63029.0,0.0626]
[1721024628248,0.26966459,63037.0,63030.0,0.0759]
[1721024628448,0.26966459,63037.0,63031.0,0.063595]
[1721024629275,0.20882258,63037.0,63036.0,0.014913]
[1721024629697,0.20882258,63037.0,63036.0,0.000913]
[1721024629903,0.20882258,63037.0,63036.0,0.014913]
[1721024630231,0.20930573,63037.0,63036.0,0.014913]
[1721024630725,0.21030573,63037.0,63036.0,0.025913]
[1721024631125,0.18963202,63037.0,63036.0,0.087413]
[1721024631543,0.18963202,63037.0,63036.0,0.09794577]
[1721024632717,0.18963202,63037.0,63036.0,0.17654577]
[1721024633070,0.001,63037.0,63036.0,1.17597377]
[1721024633425,0.001,63037.0,63036.0,0.89042277]
[1721024634059,0.06985578,63040.0,63039.0,0.79420553]
[1721024634233,0.18863202,63042.0,63041.0,0.428292]
[1721024634681,0.18863202,63042.0,63041.0,0.43895276]
[1721024635039,0.11962946,63049.0,63048.0,0.204848]
[1721024635196,0.17859655,63049.0,63048.0,0.490344]
[1721024635395,0.18863202,63049.0,63048.0,0.50092615]
[1721024635601,0.18863202,63049.0,63048.0,0.50298968]
[1721024636035,0.12882287,63049.0,63048.0,0.50298968]
[1721024636192,0.18863202,63049.0,63048.0,0.51698968]
[1721024636398,0.18963202,63049.0,63048.0,0.51698968]
[1721024637449,0.11977624,63049.0,63048.0,0.51790268]
[1721024637658,0.07085578,63049.0,63048.0,0.61280268]
[1721024637855,0.18963202,63049.0,63048.0,0.61073915]
[1721024638057,0.18963202,63049.0,63048.0,0.32524315]
[1721024638643,0.18963202,63049.0,63048.0,0.18249515]
[1721024639026,0.18963202,63049.0,63048.0,0.18397015]
[1721024641612,0.18944112,63049.0,63048.0,0.18397015]
[1721024641974,0.18944112,63049.0,63048.0,0.18603368]
[1721024642181,0.0008091,63049.0,63048.0,0.96437368]
[1721024642419,0.0008091,63049.0,63048.0,1.24986968]
[1721024642618,0.0008091,63049.0,63048.0,1.24883906]
[1721024643509,0.0008091,63049.0,63048.0,1.23483906]
[1721024643679,0.18863202,63057.0,63056.0,0.85945]
[1721024643852,0.18863202,63057.0,63056.0,0.57605353]
[1721024644035,0.18863202,63057.0,63056.0,0.5864914]
[1721024646262,0.18863202,63057.0,63056.0,0.6144914]
[1721024647410,0.18863202,63057.0,63056.0,0.1863014]
[1721024648192,0.18863202,63057.0,63056.0,0.1207014]
[1721024648789,0.18863202,63057.0,63056.0,0.2634314]
[1721024649169,0.06985578,63057.0,63056.0,0.2634314]
[1721024649593,0.18863202,63057.0,63056.0,0.2634314]
[1721024650219,0.06985578,63057.0,63056.0,0.26049446]
[1721024650424,0.06985578,63057.0,63056.0,0.54595446]
[1721024651230,0.18863202,63057.0,63056.0,0.54595446]
[1721024652596,0.18863202,63063.0,63059.0,0.0754]
[1721024652835,0.18863202,63063.0,63062.0,0.142716]
[1721024653076,0.06985578,63063.0,63062.0,0.142716]
[1721024653278,0.06985578,63063.0,63062.0,0.15019232]
[1721024654637,0.06985578,63063.0,63062.0,0.16419232]
[1721024654858,0.18863202,63063.0,63062.0,0.16419232]
[1721024655400,0.18863202,63063.0,63062.0,0.44962532]
[1721024655545,0.18946202,63064.0,63063.0,0.428142]
[1721024655987,0.18946202,63064.0,63063.0,0.58411429]
[1721024656332,0.07068578,63064.0,63063.0,0.58411429]
[1721024657095,0.07068578,63064.0,63063.0,0.59811429]
[1721024657348,0.07068578,63064.0,63063.0,0.61211429]
[1721024658882,0.18946202,63064.0,63063.0,0.61211429]
[1721024659055,0.18946202,63064.0,63063.0,0.26028629]
[1721024659797,0.18946202,63064.0,63063.0,0.17818629]
[1721024660004,0.25296202,63064.0,63063.0,0.03547229]
[1721024660783,0.18946202,63064.0,63063.0,0.03547229]
[1721024661730,0.18946202,63064.0,63063.0,0.46361429]
[1721024661929,0.18946202,63064.0,63063.0,0.61041429]
[1721024662337,0.07068578,63064.0,63063.0,0.61041429]
[1721024662539,0.18946202,63064.0,63063.0,0.61041429]
[1721024664043,0.18946202,63064.0,63063.0,0.67397429]
[1721024665517,0.07068578,63064.0,63063.0,0.67397429]
[1721024666125,0.07068578,63064.0,63063.0,0.666502]
[1721024667976,0.07068578,63064.0,63063.0,0.95193]
[1721024668147,0.00083,63064.0,63063.0,0.95193]
[1721024668352,0.00083,63064.0,63063.0,1.15193]
[1721024668764,0.00083,63064.0,63063.0,1.437358]
[1721024669157,0.00083,63064.0,63063.0,1.15193]
[1721024670863,0.00083,63064.0,63063.0,1.15296291]
[1721024671271,0.00083,63064.0,63063.0,1.43839091]
[1721024671477,0.00083,63064.0,63063.0,1.437358]
[1721024671867,0.00083,63064.0,63063.0,1.13793]
[1721024672064,0.00083,63064.0,63063.0,1.13341482]
[1721024672451,0.11960624,63064.0,63063.0,1.14741482]
[1721024672617,0.00083,63064.0,63063.0,1.14741482]
[1721024672858,0.00083,63064.0,63063.0,1.13793]
[1721024673190,0.00083,63064.0,63063.0,1.15193]
[1721024673576,0.00083,63064.0,63063.0,1.13793]
[1721024674030,0.00083,63064.0,63063.0,1.437358]
[1721024674799,0.00083,63064.0,63063.0,1.43839091]
[1721024675887,0.00083,63073.0,63072.0,1.84259091]
[1721024676083,0.00083,63073.0,63072.0,2.19342131]
[1721024676331,0.00083,63073.0,63072.0,2.47880931]
[1721024676527,0.00083,63073.0,63072.0,2.51058931]
[1721024677414,0.00083,63073.0,63072.0,2.52458931]
[1721024677845,0.00083,63073.0,63072.0,2.51058931]
[1721024678305,0.00083,63073.0,63072.0,3.14012153]
[1721024678458,0.00835,63081.0,63079.0,2.45207913]
[1721024678657,0.00835,63081.0,63079.0,3.14388524]
[1721024678927,0.00835,63081.0,63079.0,3.04388339]
[1721024679132,0.00835,63081.0,63079.0,3.01996953]
[1721024679344,0.00835,63081.0,63079.0,3.45226953]
[1721024679558,0.00835,63081.0,63079.0,3.01996953]
[1721024679767,0.00835,63081.0,63079.0,3.35163983]
[1721024680018,0.00835,63081.0,63079.0,3.15163983]
[1721024680220,0.00835,63081.0,63079.0,3.21996953]
[1721024680421,0.00835,63081.0,63079.0,3.01996953]
[1721024680642,0.00835,63081.0,63079.0,3.38208744]
[1721024680844,0.00835,63081.0,63079.0,3.03396953]
[1721024681058,0.00835,63081.0,63079.0,2.91996953]
[1721024681295,0.00835,63081.0,63079.0,2.63461353]
[1721024681498,0.00835,63081.0,63079.0,2.68039353]
[1721024681715,0.00835,63081.0,63079.0,1.97936062]
[1721024682127,0.00835,63081.0,63079.0,2.2408604]
[1721024682493,0.00835,63081.0,63079.0,1.5408604]
[1721024682697,0.00835,63081.0,63079.0,2.2408604]
[1721024682898,0.00835,63081.0,63079.0,2.5402164]
[1721024683123,0.00835,63081.0,63079.0,2.54124931]
[1721024683325,0.00835,63081.0,63079.0,2.5262164]
[1721024683759,0.00835,63081.0,63079.0,2.198386]
[1721024683972,0.00835,63081.0,63079.0,2.19941891]
[1721024684464,0.00835,63081.0,63079.0,2.21341891]
[1721024684903,0.00835,63081.0,63079.0,2.19941891]
[1721024685116,0.00835,63081.0,63079.0,2.22241891]
[1721024685329,0.00835,63081.0,63079.0,2.23641891]
[1721024685761,0.00835,63081.0,63079.0,2.235386]
[1721024685890,0.00835,63081.0,63079.0,2.212386]
[1721024686072,0.00835,63081.0,63079.0,2.21341891]
[1721024686498,0.00835,63081.0,63079.0,2.53641891]
[1721024686737,0.00835,63081.0,63079.0,2.82177491]
[1721024687265,0.00835,63081.0,63079.0,2.62177491]
[1721024688267,0.00835,63081.0,63079.0,2.52177491]
[1721024688666,0.00835,63081.0,63079.0,2.23641891]
[1721024690080,0.00835,63081.0,63079.0,2.235386]
[1721024691824,0.00835,63081.0,63079.0,2.23641891]
[1721024693610,0.00835,63081.0,63079.0,2.21341891]
[1721024695456,0.57061565,63080.0,63079.0,2.21341891]
[1721024697540,0.57061565,63080.0,63079.0,1.51341891]
[1721024697767,0.57061565,63080.0,63079.0,1.45241891]
[1721024698253,0.57061565,63080.0,63079.0,2.15241891]
[1721024698496,0.57061565,63080.0,63079.0,1.451386]
[1721024698755,0.57061565,63080.0,63079.0,1.504874]
[1721024699007,0.57061565,63080.0,63079.0,0.519518]
[1721024699008,0.75059189,63080.0,63079.0,0.519518]
[1721024699238,0.82044767,63080.0,63079.0,0.37684]
[1721024699943,0.82044767,63080.0,63079.0,0.36284]
[1721024700506,0.88044767,63080.0,63079.0,0.37684]
[1721024700737,0.82044767,63080.0,63079.0,0.37684]
[1721024701190,0.82044767,63080.0,63079.0,0.36284]
[1721024701639,0.75924767,63080.0,63079.0,0.519518]
[1721024702328,0.75905685,63080.0,63079.0,0.37684]
[1721024703075,0.75905685,63080.0,63079.0,0.519518]
[1721024703524,0.75905685,63080.0,63079.0,0.804874]
[1721024706749,0.57042483,63080.0,63079.0,1.09023]
[1721024706973,0.57042483,63080.0,63079.0,1.45751891]
[1721024707199,0.57042483,63080.0,63079.0,1.456486]
[1721024707428,0.57042483,63080.0,63079.0,1.17113]
[1721024707429,0.68920107,63080.0,63079.0,1.17113]
[1721024707676,0.57042483,63080.0,63079.0,1.17113]
[1721024708381,0.57042483,63080.0,63079.0,1.479486]
[1721024708858,0.57042483,63080.0,63079.0,1.764842]
[1721024709081,0.57042483,63080.0,63079.0,1.456486]
[1721024711135,0.57042483,63080.0,63079.0,1.52105591]
[1721024711623,0.57042483,63080.0,63079.0,1.98991191]
[1721024712568,0.57042483,63080.0,63079.0,1.97591191]
[1721024712809,0.57042483,63080.0,63079.0,1.96191191]
[1721024713309,0.57042483,63080.0,63079.0,1.97591191]
[1721024714009,0.57042483,63080.0,63079.0,2.17591191]
[1721024714238,0.57042483,63080.0,63079.0,2.18991191]
[1721024714916,0.57042483,63080.0,63079.0,1.97591191]
[1721024715635,0.57042483,63080.0,63079.0,2.17591191]
[1721024715840,0.57042483,63080.0,63079.0,2.18991191]
[1721024716243,0.57042483,63080.0,63079.0,2.17591191]
[1721024716451,0.57042483,63080.0,63079.0,1.97591191]
[1721024716648,0.57042483,63080.0,63079.0,2.18991191]
[1721024717048,0.57042483,63080.0,63079.0,1.98991191]
[1721024718323,0.57042483,63080.0,63079.0,2.18991191]
[1721024718766,0.57042483,63080.0,63079.0,1.88991191]
[1721024719176,0.57042483,63080.0,63079.0,2.0371257]
[1721024720205,0.57042483,63080.0,63079.0,1.98991191]
[1721024720579,0.57042483,63080.0,63079.0,2.18991191]
[1721024720806,0.57042483,63080.0,63079.0,1.98991191]
[1721024720983,0.57042483,63080.0,63079.0,2.76760586]
[1721024721205,0.57042483,63080.0,63079.0,2.67317828]
[1721024721412,0.57042483,63080.0,63079.0,2.79121276]
[1721024721609,0.57042483,63080.0,63079.0,2.63600857]
[1721024721808,0.57042483,63080.0,63079.0,2.76768077]
[1721024723515,0.57042483,63080.0,63079.0,3.16768077]
[1721024724297,0.57042483,63080.0,63079.0,2.78783129]
[1721024724520,0.57042483,63080.0,63079.0,2.35180448]
[1721024724742,0.57042483,63080.0,63079.0,2.30455591]
[1721024724934,0.57042483,63080.0,63079.0,2.29130448]
[1721024725130,0.57042483,63080.0,63079.0,1.59130438]
[1721024725332,0.57042483,63080.0,63079.0,2.29130438]
[1721024725539,0.57042483,63080.0,63079.0,2.29131206]
[1721024725850,0.57042483,63080.0,63079.0,2.24405591]
[1721024725967,0.57042483,63080.0,63079.0,1.853767]
[1721024725968,0.68920107,63080.0,63079.0,1.853767]
[1721024726166,0.57042483,63080.0,63079.0,1.140377]
[1721024726370,0.97130923,63080.0,63079.0,0.408597]
[1721024726656,0.99658479,63080.0,63079.0,0.34506]
[1721024726843,1.09658479,63080.0,63079.0,0.34506]
[1721024727481,1.23925979,63080.0,63079.0,0.34506]
[1721024727890,1.23925979,63080.0,63079.0,0.33106]
[1721024728092,1.2377158,63080.0,63079.0,0.34506]
[1721024728501,0.19337624,63074.0,63070.0,0.063558]
[1721024728686,0.25393202,63074.0,63070.0,0.063558]
[1721024728889,0.25393202,63074.0,63073.0,0.143604]
[1721024729807,0.06985578,63074.0,63073.0,0.474694]
[1721024730018,0.06985578,63074.0,63073.0,0.760077]
[1721024730227,0.26093202,63074.0,63073.0,0.332003]
[1721024730405,0.26093202,63074.0,63073.0,0.346003]
[1721024731837,0.06985578,63076.0,63073.0,0.631386]
[1721024732036,0.11977624,63079.0,63073.0,0.774077]
[1721024732037,0.06985578,63074.0,63073.0,0.774077]
[1721024732237,0.11877624,63079.0,63073.0,0.774077]
[1721024732238,0.06985578,63076.0,63075.0,0.142687]
[1721024732441,0.18863202,63076.0,63075.0,0.142687]
[1721024732639,0.06985578,63076.0,63075.0,0.713435]
[1721024732980,0.11877624,63079.0,63078.0,1.2134]
[1721024732981,0.06985578,63079.0,63078.0,1.2134]
[1721024733115,0.18863202,63079.0,63078.0,1.24511]
[1721024733346,0.25423202,63079.0,63078.0,0.81707]
[1721024734343,0.25423202,63079.0,63078.0,0.95975]
[1721024734563,0.18863202,63079.0,63078.0,0.95975]
[1721024735281,0.18863202,63079.0,63078.0,1.53047]
[1721024735484,0.06985578,63079.0,63078.0,1.61067]
[1721024735658,0.07185578,63079.0,63078.0,1.63867]
[1721024737309,0.19063202,63079.0,63078.0,0.84507]
[1721024738137,0.19146202,63079.0,63078.0,0.84507]
[1721024738658,0.19146202,63079.0,63078.0,0.98775]
[1721024738998,0.19146202,63079.0,63078.0,0.34507]
[1721024739574,0.25396202,63079.0,63078.0,0.34507]
[1721024739755,0.19146202,63079.0,63078.0,1.27311]
[1721024740454,0.19146202,63079.0,63078.0,1.55847]
[1721024740659,0.07268578,63079.0,63078.0,1.55847]
[1721024740908,0.07268578,63079.0,63078.0,1.63567]
[1721024740909,0.19146202,63079.0,63078.0,1.63567]
[1721024741540,0.07268578,63079.0,63078.0,1.63567]
[1721024741965,0.00283,63079.0,63078.0,1.92206291]
[1721024742168,0.00283,63079.0,63078.0,2.01166291]
[1721024742543,0.00283,63079.0,63078.0,2.04344291]
[1721024742705,0.00183,63079.0,63078.0,2.02944291]
[1721024742960,0.00083,63079.0,63078.0,2.01544291]
[1721024743198,0.00183,63079.0,63078.0,2.31480291]
[1721024743406,0.00183,63079.0,63078.0,2.32880291]
[1721024743407,0.00283,63079.0,63078.0,2.32880291]
[1721024743604,0.00083,63079.0,63078.0,2.30080291]
[1721024743848,0.00083,63079.0,63078.0,2.29977]
[1721024744094,0.00283,63079.0,63078.0,1.66745]
[1721024745482,0.00283,63079.0,63078.0,1.95281]
[1721024746844,0.00283,63079.0,63078.0,1.952544]
[1721024747046,0.00283,63079.0,63078.0,1.95357691]
[1721024747251,0.00283,63079.0,63078.0,2.01727691]
[1721024747454,0.00283,63079.0,63078.0,2.32563691]
[1721024748279,0.00283,63079.0,63078.0,2.8349432]
[1721024748480,0.00283,63079.0,63078.0,2.78775482]
[1721024748734,0.00283,63079.0,63078.0,2.8349432]
[1721024748954,0.00283,63079.0,63078.0,2.78775482]
[1721024749287,0.00283,63079.0,63078.0,2.8349432]
[1721024749511,0.00283,63079.0,63078.0,2.78775482]
[1721024749716,0.00283,63079.0,63078.0,2.8349432]
[1721024749922,0.00283,63079.0,63078.0,2.58775482]
[1721024750385,0.00283,63079.0,63078.0,2.24027691]
[1721024750839,0.00283,63079.0,63078.0,2.44027691]
[1721024751236,0.00283,63079.0,63078.0,2.72563691]
[1721024751444,0.00283,63079.0,63078.0,2.82563691]
[1721024751775,0.00283,63079.0,63078.0,2.62563691]
[1721024752723,0.00283,63079.0,63078.0,2.82563691]
[1721024753674,0.00283,63079.0,63078.0,2.98775482]
[1721024753877,0.00283,63079.0,63078.0,3.03492233]
[1721024754301,0.00283,63079.0,63078.0,3.32028233]
[1721024754602,0.002642,63079.0,63078.0,3.98086427]
[1721024754820,0.002642,63079.0,63078.0,3.69550427]
[1721024755022,1e-08,63079.0,63078.0,3.69548962]
[1721024755226,1e-08,63079.0,63078.0,3.60116925]